Cogmind - Beta 15 @@@ ROGUE MODE // 2025.07.18 @ 00:31:41 Player: The Gourd Result: Destroyed by Optimus with Helical Railgun Performance ------------- Evolutions (0) 0 Regions Visited (3) 600 Robots Destroyed (28) 140 Value Destroyed (690) 690 Prototype IDs (24) 480 Alien Tech Used (0) 0 Bonus (800) 800 TOTAL SCORE: 2710 Bonus ------- Registered with UFD 300 Met Optimus in HQ 500 Cogmind --------- Core Integrity 0/250 Matter 152/300 Energy 100/100 System Corruption 0% Temperature Cool (0) Movement Rolling (215) Ox9 Location -9/Scraptown Parts ------- > --- POWER (1) -------- Subdweller Power Source > --- PROPULSION (2) --- Light Treads Wheel > --- UTILITY (2) ------ Huge Storage Unit A0-MCA's Component Scanner > --- WEAPON (2) ------- Heavy Missile Launcher Makeshift Hammer > --- INVENTORY (25) --- Improved Ion Engine Deuterium Engine Light Deuterium Engine Light Treads Wheel Nuclear Pulse Thruster Disposable Heat Sink High-capacity Matter Pod (0) Subdweller Optics Light Armor Plating Medium Armor Plating Medium Armor Plating Makeshift Light Armor Plating Makeshift Kinetic Plating Scrapoid Pod Rainbow Chip Subdweller Laser Proton Cannon Gauss Cannon Remote Datajack Vortex Trap DRS Beacon (Ready) Peak State ------------ > --- POWER ------------ Subdweller Power Source > --- PROPULSION ------- Light Treads Wheel > --- UTILITY ---------- Huge Storage Unit A0-MCA's Component Scanner > --- WEAPON ----------- Heavy Missile Launcher Makeshift Hammer > --- INVENTORY -------- Improved Ion Engine Deuterium Engine Light Deuterium Engine Light Treads Wheel Nuclear Pulse Thruster Disposable Heat Sink High-capacity Matter Pod Subdweller Optics Light Armor Plating Medium Armor Plating Medium Armor Plating Makeshift Light Armor Plating Makeshift Kinetic Plating Scrapoid Pod Rainbow Chip Subdweller Laser Proton Cannon Gauss Cannon Remote Datajack Vortex Trap DRS Beacon [Rating: 30] Favorites ----------- Power Ion Engine Engine Ion Engine Propulsion Light Treads Treads Light Treads Wheel Wheel Utility Huge Storage Unit Device Seismic Detector Storage Huge Storage Unit Processor A0-MCA's Component Scanner Protection Light Armor Plating Weapon Subdweller Laser Energy Gun Subdweller Laser Energy Cannon Subdweller Beam Cannon Ballistic Gun Assault Rifle Ballistic Cannon Battle Cannon Launcher Heavy Missile Launcher Special Weapon Mining Laser Impact Weapon Makeshift Hammer Slashing Weapon Makeshift Axe Build | -11 -10 -10 -9 ------- Run | Yrd Mat Sub Scr Slots Evolved . | . . . . Power . | . . . . Propulsion . | . . . . Utility . | . . . . Weapon . | . . . . Parts Attached 42 | 9 8 18 7 Power 5 | 1 2 1 1 Engine 5 | 1 2 1 1 Core . | . . . . Reactor . | . . . . Propulsion 6 | 3 . 3 . Treads 3 | 2 . 1 . Leg . | . . . . Wheel 3 | 1 . 2 . Hover . | . . . . Flight . | . . . . Utility 13 | 2 3 6 2 Device 3 | 1 . 1 1 Storage 3 | 1 2 . . Processor 1 | . . . 1 Hackware . | . . . . Protection 6 | . 1 5 . Artifact . | . . . . Weapon 18 | 3 3 8 4 Energy Gun 4 | 2 . 1 1 Energy Cannon 2 | . . 2 . Ballistic Gun 3 | 1 2 . . Ballistic Cannon 3 | . . 3 . Launcher 1 | . . . 1 Special Weapon 2 | . 1 . 1 Impact Weapon 2 | . . 1 1 Slashing Weapon 1 | . . 1 . Piercing Weapon . | . . . . Special Melee Weapon . | . . . . Unidentified Prototypes . | . . . . Parts Lost 13 | . 2 11 . Power 2 | . 1 1 . Propulsion 3 | . . 3 . Utility 3 | . . 3 . Weapon 5 | . 1 4 . Highest Loss Streak 3 | . 1 3 . To Critical Strikes 1 | . . 1 . Average Backups 17 | 3 11 19 19 Power 1 | . . 2 2 Propulsion 2 | 1 1 2 2 Utility 8 | . 5 9 9 Weapon 4 | 1 3 5 3 Tool/Special . | . . . . Unused Backups 33 | 3 . 4 26 Power 7 | . . 1 6 Propulsion 5 | 1 . 1 3 Utility 12 | . . 2 10 Weapon 6 | 2 . . 4 Tool/Special 3 | . . . 3 Average Slot Usage (%) 96 | . 99 99 89 Engine 14 | . 14 14 14 Treads 20 | . 28 23 14 Wheel 7 | . . 4 14 Device 2 | . 12 . . Storage 14 | . 14 14 14 Processor 3 | . . . 8 Protection 8 | . 1 13 5 Energy Gun 7 | . 9 2 12 Ballistic Gun 3 | . 12 2 . Ballistic Cannon 6 | . . 14 . Special Weapon 1 | . 5 . 1 Impact Weapon 2 | . . 1 4 Slashing Weapon 2 | . . 5 . Peak Build Rating 30 | 7 8 18 30 Average Rating 15 | 6 7 14 21 On Entrance 8 | . 7 8 18 Naked Turns . | . . . . Heaviest Build 103 | 15 92 103 95 Greatest Support 40 | 40 40 40 10 Greatest Overweight (x) 10 | . 2 10 9 Average Overweight (x) 5 | . . 4 8 Largest Inventory Capacity 25 | 8 25 25 25 Average Capacity 23 | 7 17 25 25 Most Carried 25 | 5 16 25 25 Average Carried 20 | 3 11 22 23 Final Capacity 25 | 8 25 25 25 Final Carried 25 | 5 16 25 23 Class Distribution -------------------- 100% | Mutant Dominant Class ---------------- Mutant | -10/Materials Mutant | -10/Subcaves Mutant | -9/Scraptown Resources | -11 -10 -10 -9 ----------- Run | Yrd Mat Sub Scr Matter Collected 1465 | 344 456 461 204 Remotely . | . . . . Salvage Created 1134 | 177 577 186 194 Parts 73 | 16 26 15 16 Haulers Intercepted 2 | . 2 . . Recyclers Shooed . | . . . . Parts Field Recycled . | . . . . Retrieved Matter . | . . . . Parts Self-Destructed 6 | . . 6 . Prevented . | . . . . Kills | -11 -10 -10 -9 ------- Run | Yrd Mat Sub Scr Combat Hostiles Destroyed 17 | . 11 6 . Melee 2 | . . 2 . Guns 9 | . 9 . . Cannons 4 | . . 4 . AOE 1 | . 1 . . Classes Destroyed 10 | 2 4 4 . Tunneler 5 | 5 . . . Hauler 2 | . 2 . . Recycler 1 | 1 . . . Turret 1 | . . 1 . Watcher 2 | . 2 . . Swarmer 3 | . 3 . . Grunt 8 | . 8 . . Sentry 1 | . . 1 . Artisan 1 | . . 1 . Subdweller 5 | . . 5 . Best Kill Streak 4 | 3 4 1 . Combat Bots Only 4 | . 4 1 . Max Kills in Single Turn 2 | 1 2 1 . Gunslinging . | . . . . Exploded 1 | . 1 . . Melee 1 | . . 1 . Uniques/NPCs Destroyed . | . . . . Combat | -11 -10 -10 -9 -------- Run | Yrd Mat Sub Scr Hostile Shots Fired 134 | . 46 84 4 Missed 41 | . 9 32 . Hits 93 | . 37 52 4 Projectile 93 | . 37 52 4 Critical Strikes 1 | . . 1 . Damage Taken 1827 | . 432 1289 106 Core 261 | . 18 137 106 Absorbed by Shields . | . . . . Regen/Repaired (Parts) 147 | . . . 147 Core Remaining (%) 100 | 100 . . . Volleys Fired 222 | 18 87 113 4 Largest 2 | 1 2 2 1 Hottest 113 | 20 100 113 39 Shots Fired 262 | 18 117 123 4 Gun 124 | 18 104 2 . Cannon 121 | . . 121 . Launcher 2 | . . . 2 Special 15 | . 13 . 2 Kinetic 133 | 18 52 63 . Thermal 73 | . 13 60 . Explosive 2 | . . . 2 Electromagnetic 52 | . 52 . . Robot Hit Streak 11 | 9 11 7 1 Robot Miss Streak 4 | 3 3 4 2 Penetration Max . | . . . . Secondary Targets 1 | . 1 . . Max Gunslinging Chain 1 | . 1 . . Shots Hit Robots 124 | 13 74 28 9 Core Hits 38 | 7 22 9 . Critical Kills 1 | . . 1 . Critical Parts Destroyed 2 | . . . 2 Critical Strikes 7 | . . 5 2 Destroy 4 | . . 4 . Blast 1 | . . 1 . Smash 2 | . . . 2 Melee Attacks 90 | . . 82 8 Impact 15 | . . 7 8 Slashing 75 | . . 75 . Piercing . | . . . . Sneak Attacks 1 | . . 1 . Combat Hostiles . | . . . . Follow-up Attacks . | . . . . Damage Inflicted 3048 | 161 1139 791 957 Guns 1141 | 161 980 . . Cannons 525 | . . 525 . Explosions 262 | . 159 . 103 Melee 1120 | . . 266 854 Ramming . | . . . . Kinetic 1119 | 161 461 497 . Thermal 187 | . 159 28 . Explosive 103 | . . . 103 Electromagnetic 519 | . 519 . . Impact 960 | . . 106 854 Slashing 160 | . . 160 . Piercing . | . . . . Highest Corruption 7 | . . 7 . Average Corruption 6 | . . 6 . Corruption Purged . | . . . . Corruption Blocked . | . . . . Effects 69 | . . 69 . Message Errors 13 | . . 13 . Matter Fused 18 | . . 18 . Heat Flow Errors 13 | . . 13 . Energy Discharges 7 | . . 7 . Parts Fused 2 | . . 2 . Data Loss (minor) 5 | . . 5 . Data Loss (major) 5 | . . 5 . Misfires 4 | . . 4 . Alerts 1 | . . 1 . Weapon Failures 1 | . . 1 . Overload Shots . | . . . . Overflow Damage 353 | . 19 4 330 Projectiles 4 | . . 4 . Explosions 19 | . 19 . . Melee 330 | . . . 330 Knockbacks 4 | . . 4 . Impact . | . . . . Kinetic 4 | . . 4 . Secondary . | . . . . Self-Inflicted Damage 59 | . 59 . . Shots 2 | . 2 . . Rammed . | . . . . Targets Rammed . | . . . . Kicked . | . . . . Crushed . | . . . . Highest Temperature 311 | . 162 311 . Average Temperature 96 | . 43 144 . Received Heat Transfer 327 | . 147 180 . Effects 1 | . . 1 . Damage (minor) 1 | . . 1 . Siege Activations . | . . . . Martial Activations . | . . . . Shielding Activations . | . . . . Robots Disrupted . | . . . . Combat Hostiles . | . . . . Robots Corrupted 2 | . 1 . 1 Combat Hostiles 1 | . 1 . . Parts Fried 2 | . 2 . . Impact Corruptions 4 | . . . 4 Robots Melted . | . . . . Combat Hostiles . | . . . . Parts Melted . | . . . . Heat Transferred 237 | . 200 37 . Parts Sabotaged . | . . . . Parts Stolen . | . . . . Parts Stripped . | . . . . Power Chain Reactions 2 | . 2 . . Alert | -11 -10 -10 -9 ------- Run | Yrd Mat Sub Scr Maximum Alert Level . | . . . . Low Security (%) 100 | 100 100 . . Level 1 . | . . . . Level 2 . | . . . . Level 3 . | . . . . Level 4 . | . . . . Level 5 . | . . . . High Security . | . . . . Max Security . | . . . . Peak Influence 94 | 10 94 . . Initial . | . . . . Average 13 | 1 14 . . Influence Increases 499 | 30 399 70 . Destroy 0b10 Robot/C 260 | . 220 40 . Destroy 0b10 Robot/NC 50 | 30 20 . . Destroy Leader 68 | . 68 . . Successful Hack 36 | . 36 . . Select Force Hacks 30 | . 30 . . Disable Machine 15 | . 15 . . Destroy Structure 10 | . 10 . . Lose Combat Pursuer 30 | . . 30 . Influence Decreases 499 | 30 347 102 20 Entered New Map 46 | . . 26 20 Time Decay 433 | 30 327 76 . Lost Part 20 | . 20 . . Squads Dispatched 3 | . 3 . . Investigation 1 | . 1 . . Extermination . | . . . . Reinforcement 2 | . 2 . . Assault . | . . . . Garrison . | . . . . Intercept . | . . . . Searches Triggered . | . . . . Construction Impeded . | . . . . Haulers Reinforced . | . . . . Active Scanning Responses . | . . . . Cargo Convoy Interrupts . | . . . . Stealth | -11 -10 -10 -9 --------- Run | Yrd Mat Sub Scr Distress Signals 2 | . 2 . . Communications Jammed . | . . . . Distress Signals . | . . . . Times Spotted 47 | . 27 16 4 Peak Tracking Total 4 | . 4 3 3 Tactical Retreats 1 | . . 1 . Traps | -11 -10 -10 -9 ------- Run | Yrd Mat Sub Scr Traps Triggered . | . . . . Indirectly . | . . . . Trap Hack Attempts . | . . . . Triggered . | . . . . Disarmed . | . . . . Reprogrammed . | . . . . Reused . | . . . . Traps Extracted . | . . . . Installed . | . . . . Triggered . | . . . . Most Traps Carried 1 | . . 1 1 Machines | -11 -10 -10 -9 ---------- Run | Yrd Mat Sub Scr Machines Disabled 4 | . 1 2 1 Max in Single Turn 1 | . 1 1 1 Machines Repaired . | . . . . Machines Dismantled . | . . . . Machines Sabotaged . | . . . . Overloaded Fab Kills . | . . . . Hacking | -11 -10 -10 -9 --------- Run | Yrd Mat Sub Scr Machines Accessed 17 | . 9 2 6 Terminals 6 | . 6 . . Fabricators . | . . . . Repair Stations 1 | . 1 . . Recycling Units 2 | . 2 . . Scanalyzers . | . . . . Garrison Access . | . . . . Total Hacks 69 | . 29 13 27 Successful 54 | . 14 13 27 Failed 15 | . 15 . . Catastrophic 2 | . 2 . . Database Lockouts . | . . . . Manual 21 | . 21 . . Terminals 20 | . 20 . . Fabricators . | . . . . Repair Stations 3 | . 3 . . Recycling Units 6 | . 6 . . Scanalyzers . | . . . . Garrison Access . | . . . . Terminal Hacks 43 | . 3 13 27 Record 31 | . . 12 19 Robot Analysis 7 | . . . 7 Transport Status 1 | . 1 . . Hauler Manifests 1 | . 1 . . Registered Components 1 | . 1 . . Proto ID Catalog 2 | . . 1 1 Fabricator Hacks . | . . . . Repair Station Hacks . | . . . . Recycling Unit Hacks 3 | . 3 . . Report Inventory 2 | . 2 . . Retrieve Components 1 | . 1 . . Scanalyzer . | . . . . Garrison Access Hacks . | . . . . Unauthorized Hacks 8 | . 8 . . Terminals 7 | . 7 . . Botnet 2 | . 2 . . Skim 5 | . 5 . . Fabricators . | . . . . Repair Stations . | . . . . Recycling Units 1 | . 1 . . Tunnel 1 | . 1 . . Scanalyzers . | . . . . Garrison Access . | . . . . Data Cores Recovered . | . . . . Used . | . . . . Hacking Detections 9 | . 9 . . Full Trace Events . | . . . . Feedback Events . | . . . . Feedback Blocked . | . . . . Robot Schematics Acquired . | . . . . Robots Built . | . . . . Authchips . | . . . . Time . | . . . . Total Robot Build Rating . | . . . . Part Schematics Acquired . | . . . . Parts Built . | . . . . Authchips . | . . . . Time . | . . . . Total Part Build Rating . | . . . . Parts Repaired . | . . . . Time . | . . . . Parts Recycled . | . . . . Recycled Matter . | . . . . Retrieved Matter . | . . . . Retrieved Components 9 | . 9 . . Parts Scanalyzed . | . . . . Part Schematics Acquired . | . . . . Parts Damaged . | . . . . Bothacking | -11 -10 -10 -9 ------------ Run | Yrd Mat Sub Scr Used RIF Installer . | . . . . Robots Hacked . | . . . . Non-combat . | . . . . Combat . | . . . . Robot Hacks Applied . | . . . . Relay Couplers Released . | . . . . Fabnet Peak Effective % . | . . . . Robots Rewired . | . . . . Allies Hacked . | . . . . Hacks Repelled . | . . . . Allies | -11 -10 -10 -9 -------- Run | Yrd Mat Sub Scr Total Allies . | . . . . Largest Group . | . . . . Highest-Rated Group . | . . . . Highest-Rated Ally . | . . . . Total Orders . | . . . . Ally Attacks . | . . . . Total Damage . | . . . . Kills . | . . . . Allies Corrupted . | . . . . Allies Melted . | . . . . Intel | -11 -10 -10 -9 ------- Run | Yrd Mat Sub Scr Active Infowar (turns) 2653 | 197 2455 1 . Optics 1 | . . 1 . Seismic 2652 | 197 2455 . . Robot Analysis Total 7 | . . . 7 Derelict Logs Recovered 7 | . . 2 5 Drone Launches . | . . . . Drone Recoveries . | . . . . Exploration | -11 -10 -10 -9 ------------- Run | Yrd Mat Sub Scr Turns Passed 15198 | 290 2736 6606 5566 Spaces Moved 5860 | 141 1034 2098 2587 Core 3 | 3 . . . Treads 2508 | 138 1034 1336 . Legs . | . . . . Wheels 3349 | . . 762 2587 Hover . | . . . . Flight . | . . . . Fastest Speed 50 | 50 160 131 200 Average Speed 237 | 157 225 287 205 Slowest Speed 480 | 160 320 480 215 Overloaded Moves . | . . . . Propulsion Burnouts . | . . . . Robots Hopped . | . . . . Potential Cave-ins 23 | . . 23 . Cave-ins Triggered 2 | . . 2 . Exploration Rate (%) 69 | 6 99 79 92 Regions Visited 3 Branch Regions 2 Pre-discovered Areas 8 | . 4 2 2 Known Exits Taken 1 | . 1 . . Unknown Exits Taken 2 | 1 . 1 . Scrap Searched 12 | . . 7 5 Spaces Dug 43 | . 4 39 . Terrain Destroyed 107 | . 10 88 9 Melee 20 | . . 20 . Projectile 73 | . 5 68 . AOE 14 | . 5 . 9 Terrain Rammed . | . . . . Walls Destroyed . | . . . . Machines Disabled . | . . . . Actions | -11 -10 -10 -9 --------- Run | Yrd Mat Sub Scr Total 6769 | 188 1288 2462 2831 Wait 426 | 10 131 101 184 Move 5855 | 140 1033 2095 2587 Hop . | . . . . Pick Up 67 | 7 13 29 18 Fast Attach 12 | 8 . . 4 Attach 17 | . 2 12 3 Detach 5 | 1 . 1 3 Swap 37 | 1 19 15 2 Drop 36 | 3 3 12 18 Fire 222 | 18 87 113 4 Melee 90 | . . 82 8 Ram . | . . . . Kick . | . . . . Crush . | . . . . Escape Stasis 2 | . . 2 . Rewire . | . . . . Trap . | . . . . Miscellaneous . | . . . . Route ------- -11/Scrapyard -10/Materials (discovered 6 exits: *Mat x3 / [*Min x2] / *Sub) -10/Subcaves (discovered 4 exits: *Mat x2 / *Rec / *Scr) -9/Scraptown (discovered 1 exit: [*Fac]) History --------- Turn | Location | Event 13 | -11/Scrapyard | Discovered new exit (range 15) 291 | -11/Scrapyard | Entered Materials 312 | -10/Materials | Build established: Mutant 432 | -10/Materials | Discovered new exit (range 7) 934 | -10/Materials | Discovered new exit (range 16) 1125 | -10/Materials | Discovered new exit (range 4) 1302 | -10/Materials | Discovered new exit (range 11) 1355 | -10/Materials | Learned location of 1 exit from Recycling 1393 | -10/Materials | Learned location of Mines (-9) 1419 | -10/Materials | Learned Recycling recycling unit intel 1443 | -10/Materials | Loaded intel: 12 trap records 1444 | -10/Materials | Identified exit to Materials 1444 | -10/Materials | Identified exit to Subcaves 1449 | -10/Materials | Learned location of Recycling (-9) 1464 | -10/Materials | Learned location of Storage (-9) 1510 | -10/Materials | Discovered exit to Materials (range 8) 3027 | -10/Materials | Entered Subcaves 3028 | -10/Subcaves | Approached by a straggling Scientist 3028 | -10/Subcaves | Identified exit to Recycling 3044 | -10/Subcaves | Identified exit to Materials 3076 | -10/Subcaves | Learned Materials security intel 4051 | -10/Subcaves | Shifting Twisted Machinery released Sub. Machine Gun 4736 | -10/Subcaves | Learned location of Zion (-6) 4736 | -10/Subcaves | Met a Zionite searching for "candidates" 4960 | -10/Subcaves | Disturbed a concealed Subdweller 5198 | -10/Subcaves | Ambushed by Subdweller buried in earth 5362 | -10/Subcaves | Shifting Twisted Machinery released Slug Cannon 6017 | -10/Subcaves | Shifting Twisted Machinery released Mak. Hammer 6628 | -10/Subcaves | Scientist uncovered a shortcut to Scraptown 6967 | -10/Subcaves | Ambushed by Subdweller buried in earth 7089 | -10/Subcaves | Ambushed by Subdweller buried in earth 7373 | -10/Subcaves | Crushed by falling debris 7380 | -10/Subcaves | Crushed by falling debris 7411 | -10/Subcaves | Lost 3 parts (1n1u1w) 7624 | -10/Subcaves | Core integrity fell below 50% 7802 | -10/Subcaves | Lost 3 parts (2n1w) 7841 | -10/Subcaves | Visited Clippyterm 7848 | -10/Subcaves | Learned location of Deep Caves (-6) 8450 | -10/Subcaves | Visited 4L-MR0's lab 8472 | -10/Subcaves | Found Prototype Processor 8480 | -10/Subcaves | Identified Rainbow Chip 9106 | -10/Subcaves | Shifting Twisted Machinery released Mak. Kinetic Plating 9114 | -10/Subcaves | Shifting Twisted Machinery released Piercing Trap 9118 | -10/Subcaves | Shifting Twisted Machinery released Sub. Power Source 9360 | -10/Subcaves | Discovered exit to Materials (range 9) 9633 | -10/Subcaves | Entered Scraptown 9633 | -9/Scraptown | System corruption cleaned by C-Scrubber 10318 | -9/Scraptown | Heard Great Nut preacher, LISTEN AND RECITE! 10350 | -9/Scraptown | Discovered new exit (range 5) 10470 | -9/Scraptown | Scanned Subdweller tech in exchange for log data 10475 | -9/Scraptown | Learned 12 Factory zone layouts 10479 | -9/Scraptown | Learned Research stockpile data 10481 | -9/Scraptown | Learned location of Extension (-5) 10483 | -9/Scraptown | Learned location of Armory (-4) 10542 | -9/Scraptown | Visited Spacefarers 10701 | -9/Scraptown | Visited Symbiants 11211 | -9/Scraptown | Visited IN-MT5's Study 11261 | -9/Scraptown | Visited Assassins FH 11392 | -9/Scraptown | Visited CR-KLE's Repair Center 11441 | -9/Scraptown | Visited Cave Peace 11521 | -9/Scraptown | Visited UFD Registry 11521 | -9/Scraptown | Registered with UFD as "Bullettube" 11568 | -9/Scraptown | Visited LU-1G1's Boring Crew 11689 | -9/Scraptown | Visited A0-MCA Data Center 11701 | -9/Scraptown | Given a C rating by A0-MCA 11715 | -9/Scraptown | Found A0-MCA's Component Scanner 11902 | -9/Scraptown | Visited Analyses Database 11976 | -9/Scraptown | Delivered Scrap Shield to a Scientist 12216 | -9/Scraptown | Visited Scrapoid Pod Storage 12226 | -9/Scraptown | Found Scrapoid Pod 12259 | -9/Scraptown | Visited Junk Repository 12322 | -9/Scraptown | Visited Derelict Rescue Squad 12334 | -9/Scraptown | Found DRS Beacon 12389 | -9/Scraptown | Visited Junk Repository 12478 | -9/Scraptown | Visited Science Guys 12573 | -9/Scraptown | Visited Scrapoid Research Area 13299 | -9/Scraptown | Guru changed UFD alias to "Dualtank" 13711 | -9/Scraptown | CR-KLE repaired 3 parts 14771 | -9/Scraptown | Met Optimus 14771 | -9/Scraptown | Accepted into 0bPrime 15171 | -9/Scraptown | Civil war broke out across Scraptown 15186 | -9/Scraptown | Attacked by Scraptown defenders 15194 | -9/Scraptown | Core integrity fell below 20% 15199 | -9/Scraptown | Destroyed by Optimus with Helical Railgun Last Messages --------------- 15187_ Destroyed Siege Cannon. 15187_ Triborg system corrupted by crushing effect. 15187_ Slug penetrates ES-KOK(j). 15187_ 6G-B9X(j) destroyed. 15189_ Sneak attack on Triborg. 15189_ Destroyed Imp. Targeting Computer. 15189_ Triborg system corrupted by crushing effect. 15189_ Slug penetrates ES-KOK(j). 15189_ ES-KOK(j) destroyed. 15190_ Triborg system terminally corrupted. 15190_ CPS modules swiftly deploy to protect Triborg components. 15193_ 3G-HL5(g): "I'll admit this is sort of exciting." 15193_ Penetrated by Slug. 15195_ Slug penetrates 3G-HL5(g). 15196_ Machine disabled. 15197_ 3G-HL5(g) destroyed. Map ----- +----------------------------------------------------+ | #????? ## #???????# #?#" | | #???????""""## #???????###### ####?### | | ########## ##### ##########???????##### ######## | | #???????#"""" """""""" | | #???????#" | | #???????#" | | #???????#" | | #???????#" | | ################# #????####" | | #???????????????# #????"""" """"""" | | #???????????????# #????"""" """"""" | | #??????########## #????"""" ""##### | | #??????# % #????"""" ""# | | #??????# """ #????"""" ""# | | #??????# """ ###?#"""" ""# " | | #??????# X" % ""#"#"""" ""# "" | | #??????# """ != """"#"""" ""# " | | #??????# "" =%[ "#######" "" | | #??????# [ ! ###?????#" "" | | #??????####### !%= #########" ""# " | | #??????????????# *! ""# "" | | #???????????????# ""# " | | #???????????????# =! ""# | | #???????????????# !!!! ""# | | ################# !!%!* ""##### | | !!*@! """"""" | | 3 """"""" | | | | | | | | #""""#" | | #????#" | | #????#"""""" """""" | | ###### ############## ##; ####????####### ###### | | #????# # #?????????# ## | | #????#" """# ;?????????# # # ## | | "#????#" " # ;???????????# # ## | | "#????#"" " # ;???????????# # ## | | "#????#""" " #[ #?????????# ####### ## | | """"""""##????#"" " #%= #?????????# ## | | "#?????#" "###= #?????????# # """ # ## | | ##?????#" " "?#* #???????????# "#" # ## | | #??????#"""""""#?# #???????????# """ # ## | | ########??????#########?# #???????????# # ## | | ????????????????????????# #???????????#########? | | ?????????????############ #????????????????????? | | ?????????????#""""""""""" #????????###########?# | | ?????????????#""""" """"" #???????? ##"""## | | ???????#######"""" " "" #????# """"""" ## ""## | | ???????# #????# """"""" | +----------------------------------------------------+ Best States ------------- Heat Dissipation 25 Energy Generation 15 Energy Capacity 250 Matter Stores 300 Matter Capacity 300 Sight Range 16 Terrain Scan Density 10 Armor Coverage 150 Evasion (%) 40 Recoil Reduction 2 Item Schematics ----------------- None Robot Schematics ------------------ None Fabricated ------------ Nothing Repaired ---------- Nothing Alien Tech Used ----------------- None Achievements -------------- None Challenges ------------ None Game ------ Seed PlexusMatterParser Manual? 0 Play Time 01:11:58 Cumulative 136.8 hours Start 2025.07.17 @ 23:18:18 End 2025.07.18 @ 00:31:41 Sessions 1 Manual Loads 0 Difficulty Rogue Special Mode None Game No. 91 Rogue 91 Adventurer 0 Explorer 0 Win Type - Total 2 Types 2/0/0/0/0/0/0/0/0/0 Lore% 43 Gallery% 49 Achievement% 51 Wizard Run 0 Options --------- Layout 1 ASCII 0 Keyboard 1 Movement Vi Keybinds 1 Fullscreen 1 Font 32/SmallcapsGlow Map View 50x35 Zoom Use 0% Tactical HUD 1 Map Filters NONE Filters NONE Steam 1 RUN: 270a86dd-4304-42c1-815c-286e997cbdd0